Cogmind - Beta 16 @@@ ROGUE MODE // 2026.02.04 @ 19:04:09 Player: Null_error Result: Destroyed by G-34 Mercenary with Small Laser Performance ------------- Evolutions (1) 500 Regions Visited (4) 800 Robots Destroyed (58) 290 Value Destroyed (1260) 1260 Prototype IDs (1) 20 Alien Tech Used (0) 0 Bonus (0) 0 TOTAL SCORE: 2870 Bonus ------- None Cogmind --------- Core Integrity 0/400 Matter 275/300 Energy 266/280 System Corruption 0% Temperature Cool (6) Movement Rolling (175) Ox5 Location -9/Storage Parts ------- > --- POWER (1) -------- Heavy Ion Engine > --- PROPULSION (2) --- Compact Wheel > --- UTILITY (4) ------ Improved Heat Sink Improved Heat Sink Huge Storage Unit > --- WEAPON (2) ------- Beam Rifle Heavy Assault Rifle > --- INVENTORY (25) --- Ion Engine Light Ion Engine Light Ion Engine Light Nuclear Core Heat Sink Improved Heat Sink Small Storage Unit Structural Scanner Visual Processing Unit Transport Network Coupler ECM Suite Propulsion Shielding Light Armor Plating Particle Gun Light Assault Rifle Heavy Assault Rifle Peak State ------------ > --- POWER ------------ Heavy Ion Engine > --- PROPULSION ------- Light Treads Compact Wheel > --- UTILITY ---------- Improved Heat Sink Huge Storage Unit Medium Battery Structural Scanner > --- WEAPON ----------- Beam Rifle Particle Cannon > --- INVENTORY -------- Ion Engine Light Ion Engine Light Ion Engine Heavy Ion Engine Light Nuclear Core Heat Sink Improved Heat Sink Improved Heat Sink Improved Heat Sink Small Storage Unit Visual Processing Unit ECM Suite Propulsion Shielding Particle Gun Particle Gun Light Assault Rifle Heavy Assault Rifle Grenade Launcher [Rating: 18] Favorites ----------- Power Light Nuclear Core Engine Light Ion Engine Power Core Light Nuclear Core Propulsion Light Treads Treads Light Treads Leg Aluminum Leg Wheel Compact Wheel Utility Huge Storage Unit Device Improved Heat Sink Storage Huge Storage Unit Weapon Medium Laser Energy Gun Medium Laser Energy Cannon Particle Cannon Ballistic Gun Light Assault Rifle Launcher Grenade Launcher Build | -11 -10 -10 -9 -9 ------- Run | Yrd Mat Min Mat Sto Slots Evolved 2 | . . . 2 . Power . | . . . . . Propulsion . | . . . . . Utility 2 | . . . 2 . Weapon . | . . . . . Parts Attached 39 | 8 8 5 14 4 Power 8 | 1 2 2 2 1 Engine 5 | 1 1 1 1 1 Core 3 | . 1 1 1 . Reactor . | . . . . . Propulsion 9 | 2 1 1 5 . Treads 3 | 2 . . 1 . Leg 2 | . . . 2 . Wheel 4 | . 1 1 2 . Hover . | . . . . . Flight . | . . . . . Utility 9 | 2 3 1 2 1 Device 6 | 1 2 1 1 1 Storage 3 | 1 1 . 1 . Processor . | . . . . . Hackware . | . . . . . Protection . | . . . . . Artifact . | . . . . . Weapon 13 | 3 2 1 5 2 Energy Gun 9 | 3 2 . 3 1 Energy Cannon 1 | . . . 1 . Ballistic Gun 2 | . . 1 . 1 Ballistic Cannon . | . . . . . Launcher 1 | . . . 1 . Special Weapon . | . . . . . Impact Weapon . | . . . . . Slashing Weapon . | . . . . . Piercing Weapon . | . . . . . Special Melee Weapon . | . . . . . Unidentified Prototypes 1 | . . . 1 . Parts Lost 18 | . 6 2 2 8 Power 3 | . 2 . . 1 Propulsion 5 | . 2 . 2 1 Utility 3 | . 1 . . 2 Weapon 7 | . 1 2 . 4 Highest Loss Streak 7 | . 3 1 1 7 To Critical Strikes . | . . . . . Average Backups 12 | 2 10 11 14 20 Power 2 | 1 2 2 3 4 Propulsion . | . 1 . . . Utility 5 | . 4 6 6 9 Weapon 3 | . 2 2 3 6 Tool/Special . | . . . . . Unused Backups 8 | . . . . 8 Power 2 | . . . . 2 Propulsion . | . . . . . Utility 5 | . . . . 5 Weapon 1 | . . . . 1 Tool/Special . | . . . . . Average Slot Usage (%) 89 | . 89 85 89 94 Engine 3 | . 4 4 1 9 Core 6 | . 5 5 9 . Treads 11 | . 26 . 3 . Leg 1 | . . . 4 . Wheel 7 | . . 23 5 20 Device 16 | . 10 14 21 21 Storage 17 | . 14 14 21 19 Energy Gun 18 | . 27 13 14 5 Energy Cannon 3 | . . . 5 8 Ballistic Gun 1 | . . 9 . . Launcher 1 | . . . 1 7 Peak Build Rating 18 | 7 12 12 18 17 Average Rating 11 | 5 8 9 15 16 On Entrance 8 | . 7 7 12 17 Avg Prop Armor Cover (%) 9 | . . . 9 . Naked Turns . | . . . . . Heaviest Build 99 | 12 89 89 99 99 Greatest Support 40 | 40 40 26 32 32 Greatest Overweight (x) 31 | . 5 5 31 5 Average Overweight (x) 3 | . 1 3 7 3 Largest Inventory Capacity 25 | 8 25 25 25 25 Average Capacity 22 | 7 21 25 25 25 Most Carried 22 | 5 14 13 22 22 Average Carried 12 | 3 10 11 14 20 Final Capacity 25 | 8 25 25 25 25 Final Carried 22 | 5 13 13 22 16 Class Distribution -------------------- 77% | Mutant 22% | Scavenger-Mutant Dominant Class ---------------- Mutant | -10/Materials Mutant | -10/Mines Mutant | -9/Materials Mutant | -9/Storage Resources | -11 -10 -10 -9 -9 ----------- Run | Yrd Mat Min Mat Sto Matter Collected 697 | 280 95 77 170 75 Remotely . | . . . . . Salvage Created 1964 | 140 613 99 893 219 Parts 104 | 9 35 5 49 6 Haulers Intercepted 2 | . . . 2 . Recyclers Shooed 4 | . 3 . 1 . Parts Field Recycled . | . . . . . Retrieved Matter . | . . . . . Parts Self-Destructed . | . . . . . Prevented . | . . . . . Parts Restored . | . . . . . Kills | -11 -10 -10 -9 -9 ------- Run | Yrd Mat Min Mat Sto Combat Hostiles Destroyed 38 | . 11 3 16 8 Guns 25 | . 11 3 5 6 Cannons 11 | . . . 9 2 AOE 2 | . . . 2 . Classes Destroyed 9 | 3 4 . 2 . Worker 5 | 1 4 . . . Builder 1 | . 1 . . . Tunneler 3 | 2 . . 1 . Hauler 2 | . . . 2 . Recycler 6 | 1 2 . 3 . Watcher 3 | . 1 . 2 . Swarmer 12 | . 3 1 5 3 Grunt 21 | . 8 2 6 5 Sentry 5 | . . . 5 . Best Kill Streak 7 | 2 3 2 6 7 Combat Bots Only 7 | . 3 2 4 7 Max Kills in Single Turn 3 | 1 1 1 3 1 Gunslinging . | . . . . . Exploded 1 | . . . 1 . Melee . | . . . . . Uniques/NPCs Destroyed . | . . . . . Combat | -11 -10 -10 -9 -9 -------- Run | Yrd Mat Min Mat Sto Hostile Shots Fired 294 | . 97 30 69 98 Missed 78 | . 23 5 22 28 Hits 216 | . 74 25 47 70 Projectile 216 | . 74 25 47 70 Critical Strikes 1 | . . . 1 . Damage Taken 2403 | . 819 265 587 732 Core 653 | . 180 69 173 231 Absorbed by Shields . | . . . . . Core Remaining (%) 50 | 100 . . . . Volleys Fired 151 | 9 50 21 43 28 Largest 2 | 2 2 2 2 2 Hottest 133 | 90 100 70 133 133 Shots Fired 281 | 16 95 36 83 51 Gun 227 | 16 95 36 44 36 Cannon 46 | . . . 33 13 Launcher 8 | . . . 6 2 Special . | . . . . . Kinetic 22 | . . 17 . 5 Thermal 247 | 12 95 19 77 44 Explosive 8 | . . . 6 2 Electromagnetic 4 | 4 . . . . Robot Hit Streak 17 | 5 14 7 17 14 Robot Miss Streak 5 | 2 5 3 3 5 Penetration Max . | . . . . . Secondary Targets 4 | . 2 1 . 1 Max Gunslinging Chain 1 | . 1 1 . 1 Shots Hit Robots 180 | 10 60 24 54 32 Core Hits 84 | 5 31 8 31 9 Critical Kills . | . . . . . Critical Parts Destroyed 1 | . . 1 . . Critical Strikes 11 | 1 5 1 . 4 Burn 10 | 1 5 . . 4 Destroy 1 | . . 1 . . Melee Attacks . | . . . . . Impact . | . . . . . Slashing . | . . . . . Piercing . | . . . . . Sneak Attacks . | . . . . . Combat Hostiles . | . . . . . Follow-up Attacks . | . . . . . Damage Inflicted 2993 | 128 777 237 1144 707 Guns 2087 | 128 760 237 495 467 Cannons 591 | . . . 419 172 Explosions 298 | . . . 230 68 Melee . | . . . . . Ramming 17 | . 17 . . . Kinetic 158 | . . 89 . 69 Thermal 2466 | 74 760 148 914 570 Explosive 298 | . . . 230 68 Electromagnetic 54 | 54 . . . . Impact . | . . . . . Slashing . | . . . . . Piercing . | . . . . . Highest Corruption . | . . . . . Average Corruption . | . . . . . Corruption Purged . | . . . . . Corruption Blocked . | . . . . . Overload Shots . | . . . . . Overflow Damage 3 | . . . 3 . Projectiles . | . . . . . Explosions 3 | . . . 3 . Melee . | . . . . . Knockbacks . | . . . . . Impact . | . . . . . Kinetic . | . . . . . Secondary . | . . . . . Self-Inflicted Damage 37 | . . . 30 7 Shots 2 | . . . 1 1 Rammed 3 | . 3 . . . Targets Rammed 4 | . 4 . . . Kicked . | . . . . . Crushed 1 | . 1 . . . Highest Temperature 236 | 90 236 12 150 190 Average Temperature 53 | 32 67 4 47 72 Received Heat Transfer 978 | . 369 99 219 291 Siege Activations . | . . . . . Martial Activations . | . . . . . Shielding Activations . | . . . . . Robots Disrupted . | . . . . . Combat Hostiles . | . . . . . Robots Corrupted . | . . . . . Combat Hostiles . | . . . . . Parts Fried . | . . . . . Impact Corruptions . | . . . . . Robots Melted . | . . . . . Combat Hostiles . | . . . . . Parts Melted 11 | . 3 . 4 4 Heat Transferred 6487 | 284 2351 337 1998 1517 Parts Sabotaged . | . . . . . Parts Stolen . | . . . . . Parts Stripped . | . . . . . Power Chain Reactions . | . . . . . Alert | -11 -10 -10 -9 -9 ------- Run | Yrd Mat Min Mat Sto Maximum Alert Level 1 | . . . 1 . Low Security (%) 99 | 100 100 100 97 100 Level 1 . | . . . 2 . Level 2 . | . . . . . Level 3 . | . . . . . Level 4 . | . . . . . Level 5 . | . . . . . High Security . | . . . . . Max Security . | . . . . . Peak Influence 290 | 10 78 30 290 122 Initial 122 | . . 12 . 122 Average 28 | 1 19 9 39 62 Influence Increases 1177 | 20 353 80 532 192 Destroy 0b10 Robot/C 760 | . 220 60 320 160 Destroy 0b10 Robot/NC 100 | 20 40 . 40 . Destroy Leader 180 | . 42 20 98 20 Successful Hack 6 | . 6 . . . Disable Machine 45 | . . . 45 . Destroy Structure 41 | . . . 29 12 Lose Combat Pursuer 45 | . 45 . . . Influence Decreases 1113 | 20 320 113 242 418 Entered New Map 189 | . . 21 . 168 Time Decay 764 | 20 260 82 232 170 Lost Part 160 | . 60 10 10 80 Squads Dispatched 3 | . 1 . 1 1 Investigation 2 | . 1 . 1 . Extermination . | . . . . . Reinforcement 1 | . . . . 1 Assault . | . . . . . Garrison . | . . . . . Intercept . | . . . . . Searches Triggered . | . . . . . Construction Impeded 1 | . . . . 1 Haulers Reinforced . | . . . . . Active Scanning Responses . | . . . . . Cargo Convoy Interrupts . | . . . . . Stealth | -11 -10 -10 -9 -9 --------- Run | Yrd Mat Min Mat Sto Distress Signals 6 | . 4 . 2 . Communications Jammed . | . . . . . Distress Signals . | . . . . . Times Spotted 57 | . 21 3 22 11 Peak Tracking Total 6 | . 6 2 5 6 Tactical Retreats 3 | . 3 . . . Traps | -11 -10 -10 -9 -9 ------- Run | Yrd Mat Min Mat Sto Traps Triggered 2 | . . . 2 . Indirectly . | . . . . . Trap Hack Attempts . | . . . . . Triggered . | . . . . . Disarmed . | . . . . . Reprogrammed . | . . . . . Reused . | . . . . . Traps Extracted . | . . . . . Installed . | . . . . . Triggered . | . . . . . Machines | -11 -10 -10 -9 -9 ---------- Run | Yrd Mat Min Mat Sto Machines Disabled 5 | . . . 5 . Max in Single Turn 2 | . . . 2 . Machines Repaired . | . . . . . Machines Dismantled . | . . . . . Machines Sabotaged . | . . . . . Overloaded Fab Kills . | . . . . . Hacking | -11 -10 -10 -9 -9 --------- Run | Yrd Mat Min Mat Sto Machines Accessed 1 | . 1 . . . Terminals 1 | . 1 . . . Fabricators . | . . . . . Repair Stations . | . . . . . Recycling Units . | . . . . . Scanalyzers . | . . . . . Garrison Access . | . . . . . Total Hacks 3 | . 3 . . . Successful 2 | . 2 . . . Failed 1 | . 1 . . . Catastrophic . | . . . . . Database Lockouts . | . . . . . Manual 3 | . 3 . . . Terminals 3 | . 3 . . . Fabricators . | . . . . . Repair Stations . | . . . . . Recycling Units . | . . . . . Scanalyzers . | . . . . . Garrison Access . | . . . . . Terminal Hacks 1 | . 1 . . . Robot Analysis 1 | . 1 . . . Fabricator Hacks . | . . . . . Repair Station Hacks . | . . . . . Recycling Unit Hacks . | . . . . . Scanalyzer . | . . . . . Garrison Access Hacks . | . . . . . Unauthorized Hacks 1 | . 1 . . . Terminals 1 | . 1 . . . Skim 1 | . 1 . . . Fabricators . | . . . . . Repair Stations . | . . . . . Recycling Units . | . . . . . Scanalyzers . | . . . . . Garrison Access . | . . . . . Data Cores Recovered . | . . . . . Used . | . . . . . Hacking Detections 1 | . 1 . . . Full Trace Events 1 | . 1 . . . Feedback Events . | . . . . . Feedback Blocked . | . . . . . Robot Schematics Acquired . | . . . . . Robots Built . | . . . . . Authchips . | . . . . . Time . | . . . . . Total Robot Build Rating . | . . . . . Part Schematics Acquired . | . . . . . Parts Built . | . . . . . Authchips . | . . . . . Time . | . . . . . Total Part Build Rating . | . . . . . Part Studies Acquired . | . . . . . Parts Repaired . | . . . . . Time . | . . . . . Parts Recycled . | . . . . . Recycled Matter . | . . . . . Retrieved Matter . | . . . . . Retrieved Components . | . . . . . Parts Scanalyzed . | . . . . . Part Schematics Acquired . | . . . . . Parts Damaged . | . . . . . Bothacking | -11 -10 -10 -9 -9 ------------ Run | Yrd Mat Min Mat Sto Used RIF Installer . | . . . . . Robots Hacked . | . . . . . Non-combat . | . . . . . Combat . | . . . . . Robot Hacks Applied . | . . . . . Relay Couplers Released . | . . . . . Fabnet Peak Effective % . | . . . . . Robots Rewired . | . . . . . Allies Hacked . | . . . . . Hacks Repelled . | . . . . . Allies | -11 -10 -10 -9 -9 -------- Run | Yrd Mat Min Mat Sto Total Allies . | . . . . . Largest Group . | . . . . . Highest-Rated Group . | . . . . . Highest-Rated Ally . | . . . . . Total Orders . | . . . . . Ally Attacks . | . . . . . Total Damage . | . . . . . Kills . | . . . . . Allies Corrupted . | . . . . . Allies Melted . | . . . . . Intel | -11 -10 -10 -9 -9 ------- Run | Yrd Mat Min Mat Sto Active Infowar (turns) 1434 | 62 247 . 869 256 Structural 1200 | . 75 . 869 256 Seismic 234 | 62 172 . . . Robot Analysis Total 1 | . 1 . . . Derelict Logs Recovered 1 | . . 1 . . Drone Launches . | . . . . . Drone Recoveries . | . . . . . Exploration | -11 -10 -10 -9 -9 ------------- Run | Yrd Mat Min Mat Sto Turns Passed 2726 | 174 1007 330 875 340 Spaces Moved 766 | 89 286 183 172 36 Core 30 | 9 . . 21 . Treads 393 | 80 278 . 35 . Legs 11 | . . . 11 . Wheels 332 | . 8 183 105 36 Hover . | . . . . . Flight . | . . . . . Fastest Speed 50 | 50 160 135 135 130 Average Speed 247 | 148 256 145 412 155 Slowest Speed 1600 | 160 480 175 1600 175 Overloaded Moves . | . . . . . Propulsion Burnouts . | . . . . . Robots Hopped . | . . . . . Potential Cave-ins . | . . . . . Cave-ins Triggered . | . . . . . Exploration Rate (%) 24 | 5 36 45 28 7 Regions Visited 4 Branch Regions 2 Pre-discovered Areas 1 | . . 1 . . Known Exits Taken . | . . . . . Unknown Exits Taken 4 | 1 1 1 1 . Scrap Searched . | . . . . . Spaces Dug . | . . . . . Terrain Destroyed 39 | . . . 28 11 Melee . | . . . . . Projectile . | . . . . . AOE 39 | . . . 28 11 Terrain Rammed . | . . . . . Walls Destroyed . | . . . . . Machines Disabled . | . . . . . Actions | -11 -10 -10 -9 -9 --------- Run | Yrd Mat Min Mat Sto Total 1298 | 112 454 214 247 271 Wait 304 | 1 91 1 11 200 Move 762 | 88 285 182 171 36 Hop . | . . . . . Pick Up 24 | 5 9 3 7 . Fast Attach 11 | 7 2 . 2 . Attach 16 | 1 2 5 2 6 Detach 2 | 1 1 . . . Swap 21 | . 7 2 11 1 Drop 3 | . 3 . . . Fire 151 | 9 50 21 43 28 Melee . | . . . . . Ram . | . . . . . Kick . | . . . . . Crush 4 | . 4 . . . Escape Stasis . | . . . . . Rewire . | . . . . . Trap . | . . . . . Miscellaneous . | . . . . . Route ------- -11/Scrapyard -10/Materials -10/Mines -9/Materials (discovered 2 exits: [*Min] / *Sto) -9/Storage History --------- Turn | Location | Event 3 | -11/Scrapyard | Discovered new exit (range 16) 175 | -11/Scrapyard | Entered Materials 317 | -10/Materials | Build established: Mutant 1172 | -10/Materials | Core integrity fell below 50% 1172 | -10/Materials | Discovered new exit (range 5) 1182 | -10/Materials | Entered Mines 1195 | -10/Mines | Met a Derelict bent on vengeance 1201 | -10/Mines | Lost 3 parts (1p1n1w) 1283 | -10/Mines | Core integrity fell below 20% 1328 | -10/Mines | Learned location of Zion (-6) 1331 | -10/Mines | Discovered new exit (range 6) 1512 | -10/Mines | Entered Materials 1512 | -9/Materials | Evolved 2 slots: Utility x2 2248 | -9/Materials | Build established: Scavenger-Mutant 2250 | -9/Materials | Discovered new exit (range 16) 2367 | -9/Materials | Discovered new exit (range 7) 2387 | -9/Materials | Entered Storage 2605 | -9/Storage | Build established: Mutant 2625 | -9/Storage | Core integrity fell below 50% 2653 | -9/Storage | Core integrity fell below 20% 2696 | -9/Storage | Lost 7 parts (1p1n2u3w) 2697 | -9/Storage | Destroyed 7 combat bots 2727 | -9/Storage | Destroyed by G-34 Mercenary with Small Laser Last Messages --------------- 02703_ K-01 Serf collects debris. 02703_ R-06 Scavenger collects Lgt. Assault Rifle. 02704_ U-05 Engineer lays Concrete. 02707_ K-01 Serf collects debris. 02708_ U-05 Engineer lays Concrete. 02710_ R-06 Scavenger collects Ion Engine. 02711_ G-34 Mercenary heat damages Aluminum Leg. 02711_ Particle Gun destroyed. 02712_ K-01 Serf collects debris. 02712_ U-05 Engineer lays Concrete. 02714_ U-05 Engineer builds a Wall. 02716_ G-34 Mercenary overheating. 02718_ Heat Sink melted. 02718_ G-34 Mercenary destroyed. 02718_ U-05 Engineer builds a Wall. 02722_ U-05 Engineer builds a Door. 02724_ G-34 Mercenary suffers critical hit (Burn). 02727_ U-05 Engineer builds a Wall. Map ----- +----------------------------------------------------+ | ????????????????????????????????????????? | | ????????????????????????????????????????? | | ????????????????????????????????????????? | | ????????????????????????????????????????? | | ????????????????????????????????????????? | | ????????????????????????????????????????? | | ????????????????????????????????????????? | | ????????????????????????????????????????? | | ????????????????????????????????????????? | | ????????????????????????????????????????? | | ??????????????? ??????????????????????? | | ??????????????? ??????????????????????? | | ??????????????? # ????????????????????? | | ??????????????# # ????????????????????? | | ??????????????# # ????????????????????? | | ???????????#### # ????????????????????? | | ??????????##### ##????????????????????? | | ?????????? # # ????????????????????? | | ????????? # # ????????????????????? | | ????# """" # # ????????????????????? | | ????# """" + + ????????????????????? | | ????# """" # # ????????????????????? | | ?????? """" # ^^# ????????????????????? | | ??????? [#^^^# ????????????????????? | | ?????? =#% # ????????????????????? | | ??????##### ###%@ # ????????????????????? | | ??????## [ %% ######????????????????? | | ??????## * % % r######????????????????? | | ??????## = u g " ???????????? | | ??????#######/# ######### ??????????? | | ??????##### T############?????????????? | | ?????????##" "######????????????????????? | | ?????????##[[[###???????????????????????? | | ?????????##[[[##????????????????????????? | | ?????????#######????????????????????????? | | ?????????#######????????????????????????? | | ????????????????????????????????????????? | | ????????????????????????????????????????? | | | | | | | | | | | | | | | | | | | | | | | | | +----------------------------------------------------+ Best States ------------- Heat Dissipation 56 Energy Generation 14 Energy Capacity 430 Matter Stores 300 Matter Capacity 300 Sight Range 16 Terrain Scan Density 10 Evasion (%) 50 Recoil Reduction 2 Item Schematics ----------------- None Robot Schematics ------------------ None Fabricated ------------ Nothing Repaired ---------- Nothing Studied --------- None Alien Tech Used ----------------- None Achievements -------------- None Challenges ------------ None Game ------ Seed PiercingFlyingSpiker Manual? 0 Play Time 00:17:35 Cumulative 76.8 hours Start 2026.02.04 @ 18:48:49 End 2026.02.04 @ 19:04:09 Sessions 1 Manual Loads 0 Difficulty Rogue Special Mode None Game No. 94 Rogue 94 Adventurer 0 Explorer 0 Win Type - Total 1 Types 1/0/0/0/0/0/0/0/0/0 Lore% 26 Gallery% 46 Achievement% 20 Wizard Run 0 Options --------- Layout 1 ASCII 0 Keyboard 1 Movement Numpad Keybinds 0 Fullscreen 1 Font 24/Smallcaps Map View 50x35 Zoom Use 0% Tactical HUD 1 Map Filters NONE Filters LOW_CONTRAST(5,10,15) Steam 1 RUN: 93debb17-bac7-4355-9030-ef584b881498